fUSD/lending_fUSD_20250622
["ID","MTS","AMOUNT","RATE_DAILY","PERIOD"]
[367032951,1750623100085,-1862.31,0.00036438,15]
[367032952,1750623100094,-490.0,0.00036438,15]
[367032953,1750623100103,-490.0,0.00036438,15]
[367032954,1750623100114,-490.0,0.00036438,15]
[367032955,1750623100125,-490.0,0.00036438,15]
[367032956,1750623100135,-1316.22,0.00036438,15]
[367032957,1750623100145,-1585.07,0.00036438,15]
[367032958,1750623100156,-2200.63,0.00036438,15]
[367032959,1750623100165,-490.0,0.00036438,15]
[367032960,1750623100175,-960.62,0.00036438,15]
[367032961,1750623100184,-512.29,0.00036438,15]
[367032962,1750623100193,-490.0,0.00036438,15]
[367032963,1750623100203,-1137.65,0.00036438,15]
[367032964,1750623100213,-2059.46,0.00036438,15]
[367032965,1750623100223,-490.0,0.00036438,15]
[367032966,1750623100232,-490.0,0.00036438,15]
[367032967,1750623100242,-999.69,0.00036438,15]
[367032968,1750623100252,-490.79,0.00036438,15]
[367032969,1750623100261,-1569.59,0.00036438,15]
[367032970,1750623100270,-490.0,0.00036438,15]
[367032971,1750623100279,-899.19,0.00036438,15]
[367032972,1750623100289,-1014.45,0.00036438,15]
[367032973,1750623100304,-600.7,0.00036438,15]
[367032974,1750623100314,-1822.64,0.00036438,15]
[367032975,1750623100323,-490.0,0.00036438,15]
[367032976,1750623100333,-660.73,0.00036438,15]
[367032977,1750623100342,-490.0,0.00036438,15]
[367032978,1750623100351,-233.05741878,0.00036438,15]
[367032979,1750623100362,-490.0,0.00036438,15]
[367032980,1750623100371,-988.98,0.00036438,15]
[367032981,1750623100380,-490.0,0.00036438,15]
[367032982,1750623100389,-597.31,0.00036438,15]
[367032983,1750623100398,-151.685901,0.00036438,15]
[367032984,1750623100408,-490.0,0.00036438,15]
[367032985,1750623100417,-490.0,0.00036438,15]
[367032986,1750623100426,-490.0,0.00036438,15]
[367032987,1750623100435,-490.0,0.00036438,15]
[367032988,1750623100444,-1017.78,0.00036438,15]
[367032989,1750623100453,-490.0,0.00036438,15]
[367032990,1750623100462,-561.3,0.00036438,15]
[367032991,1750623100471,-490.0,0.00036438,15]
[367032992,1750623100480,-490.0,0.00036438,15]
[367032993,1750623100490,-1007.33,0.00036438,15]
[367032994,1750623100499,-558.09,0.00036438,15]
[367032995,1750623100508,-690.54,0.00036438,15]
[367032996,1750623100517,-490.0,0.00036438,15]
[367032997,1750623100527,-581.45,0.00036438,15]
[367032998,1750623100536,-490.0,0.00036438,15]
[367032999,1750623100547,-454.93121073,0.00036438,15]
[367033000,1750623100557,-490.0,0.00036438,15]
[367033001,1750623100566,-490.0,0.00036438,15]
[367033002,1750623100575,-490.0,0.00036438,15]
[367033003,1750623100584,-745.8,0.00036438,15]
[367033004,1750623100593,-1777.46,0.00036438,15]
[367033005,1750623100603,-490.0,0.00036438,15]
[367033006,1750623100612,-490.0,0.00036438,15]
[367033007,1750623100621,-490.0,0.00036438,15]
[367033008,1750623100631,-490.0,0.00036438,15]
[367033009,1750623100640,-505.79873912,0.00036438,15]
[367033010,1750623100671,-397.91126088,0.00036438,15]
[367033011,1750623100682,-557.94281679,0.00036438,15]
[367033012,1750623100765,-1332.11718321,0.00036438,15]
[367033013,1750623100776,-490.0,0.00036438,15]
[367033014,1750623100786,-1558.15,0.00036438,15]
[367033015,1750623100797,-490.0,0.00036438,15]
[367033016,1750623100807,-490.0,0.00036438,15]
[367033017,1750623101060,-490.0,0.00036438,15]
[367033018,1750623101069,-144.33728914,0.00036438,15]
[367033019,1750623101601,-151.0,0.0003387,7]
[367033020,1750623101612,-106.92,0.00035616,2]
[367033021,1750623101630,-297.20691,0.00035616,2]
[367033022,1750623101657,-85.87309,0.00035616,2]
[367033023,1750623101668,-300.0,0.00035616,15]
[367033024,1750623101678,-490.0,0.00035616,2]
[367033025,1750623101688,-546.21,0.0003589,15]
[367033026,1750623101697,-490.0,0.0003589,15]
[367033027,1750623101707,-191.89738591,0.0003589,2]
[367033028,1750623101716,-300.0,0.0003589,15]
[367033029,1750623101725,-490.0,0.0003589,2]
[367033030,1750623101735,-546.21,0.00036164,15]
[367033031,1750623101745,-490.0,0.00036164,15]
[367033032,1750623101755,-300.0,0.00036164,15]
[367033033,1750623101764,-345.66271086,0.00036438,15]
[367033034,1750623101774,-490.0,0.00036438,15]
[367033035,1750623101784,-490.0,0.00036438,15]
[367033036,1750623101793,-490.0,0.00036438,15]
[367033037,1750623101805,-490.0,0.00036438,15]
[367033038,1750623101814,-559.39,0.00036438,15]
[367033039,1750623101824,-490.0,0.00036438,15]
[367033040,1750623101833,-2017.34,0.00036438,15]
[367033041,1750623101843,-442.20407172,0.00036438,15]
[367033042,1750623101854,-490.0,0.00036438,15]
[367033043,1750623101866,-1103.85,0.00036438,15]
[367033044,1750623101876,-1080.95,0.00036438,15]
[367033045,1750623101886,-490.0,0.00036438,15]
[367033046,1750623101897,-490.0,0.00036438,15]
[367033047,1750623101906,-490.0,0.00036438,15]
[367033048,1750623101915,-490.0,0.00036438,15]
[367033049,1750623101925,-490.0,0.00036438,15]
[367033050,1750623101934,-490.0,0.00036438,15]
[367033051,1750623101945,-913.81,0.00036438,15]
[367033052,1750623101954,-503.18983982,0.00036438,15]
[367033053,1750623101964,-2190.4,0.00036438,15]
[367033054,1750623101973,-490.0,0.00036438,15]
[367033055,1750623101982,-490.0,0.00036438,15]
[367033056,1750623101991,-568.31,0.00036438,15]
[367033057,1750623102000,-490.0,0.00036438,15]
[367033058,1750623102010,-1996.18,0.00036438,15]
[367033059,1750623102020,-490.0,0.00036438,15]
[367033060,1750623102029,-617.96,0.00036438,15]
[367033061,1750623102038,-240.10644998,0.00036438,15]
[367033062,1750623102053,-435.45392829,0.00036438,15]
[367033063,1750623102064,-8.88962173,0.00036438,15]
[367033064,1750623102073,-1699.21,0.00036438,15]
[367033065,1750623102083,-490.0,0.00036438,15]
[367033066,1750623102092,-1763.347446,0.00036438,15]
[367033067,1750623102101,-782.17,0.00036438,15]
[367033068,1750623102110,-490.0,0.00036438,2]
[367033069,1750623102120,-490.0,0.00036438,15]
[367033070,1750623102129,-545.62,0.00036438,15]
[367033071,1750623102138,-490.0,0.00036438,15]
[367033072,1750623102147,-490.0,0.00036438,15]
[367033073,1750623102156,-2292.16,0.00036438,15]
[367033074,1750623102165,-490.0,0.00036438,15]
[367033075,1750623102174,-1038.15,0.00036438,15]
[367033076,1750623102183,-490.0,0.00036438,15]
[367033077,1750623102192,-361.40198599,0.00036438,15]
[367033078,1750623102202,-2131.49,0.00036438,15]
[367033079,1750623102211,-212.94517402,0.00036438,15]
[367033080,1750623102220,-490.0,0.00036438,15]
[367033081,1750623102229,-490.0,0.00036438,2]
[367033082,1750623102238,-490.0,0.00036438,15]
[367033083,1750623102248,-2095.71,0.00036438,15]
[367033084,1750623102257,-1949.7,0.00036438,15]
[367033085,1750623102266,-937.69,0.00036438,15]
[367033086,1750623102275,-490.0,0.00036438,15]
[367033087,1750623102285,-490.0,0.00036438,15]
[367033088,1750623102293,-490.0,0.00036438,15]
[367033089,1750623102306,-490.0,0.00036438,15]
[367033090,1750623102316,-1278.51,0.00036438,15]
[367033091,1750623102326,-696.79,0.00036438,15]
[367033092,1750623102335,-1951.19,0.00036438,15]
[367033093,1750623102344,-1111.1,0.00036438,15]
[367033094,1750623102353,-490.0,0.00036438,15]
[367033095,1750623102363,-490.0,0.00036438,15]
[367033096,1750623102371,-958.95,0.00036438,15]
[367033097,1750623102380,-1923.24,0.00036438,15]
[367033098,1750623102389,-490.0,0.00036438,15]
[367033099,1750623102398,-550.96,0.00036438,15]
[367033100,1750623102407,-554.3,0.00036438,15]
[367033101,1750623102416,-157.35981787,0.00036438,15]
[367033102,1750623102425,-490.0,0.00036438,15]
[367033103,1750623102434,-490.0,0.00036438,15]
[367033104,1750623102443,-490.0,0.00036438,15]
[367033105,1750623102453,-1947.15,0.00036438,15]
[367033106,1750623102462,-2036.74,0.00036438,15]
[367033107,1750623102472,-490.0,0.00036438,15]
[367033108,1750623102481,-563.72,0.00036438,15]
[367033109,1750623102491,-2127.54,0.00036438,15]
[367033110,1750623102501,-2066.45,0.00036438,15]
[367033111,1750623102510,-1971.77,0.00036438,15]
[367033112,1750623102520,-490.0,0.00036438,15]
[367033113,1750623102529,-490.0,0.00036438,15]
[367033114,1750623102538,-752.15,0.00036438,15]
[367033115,1750623102554,-490.0,0.00036438,15]
[367033116,1750623102564,-490.0,0.00036438,15]
[367033117,1750623102573,-841.2,0.00036438,15]
[367033118,1750623102583,-490.0,0.00036438,15]
[367033119,1750623102592,-490.0,0.00036438,15]
[367033120,1750623102601,-490.0,0.00036438,15]
[367033121,1750623102611,-490.0,0.00036438,15]
[367033122,1750623102620,-519.70665706,0.00036438,15]
[367033123,1750623102630,-1251.91,0.00036438,15]
[367033124,1750623102639,-490.0,0.00036438,15]
[367033125,1750623102649,-337.23179694,0.00036438,15]
[367033126,1750623102658,-622.63,0.00036438,15]
[367033127,1750623102668,-1178.89,0.00036438,15]
[367033128,1750623102677,-490.0,0.00036438,15]
[367033129,1750623102686,-1033.09,0.00036438,15]
[367033130,1750623102696,-490.0,0.00036438,15]
[367033131,1750623102705,-1526.6,0.00036438,15]
[367033132,1750623102715,-1732.58,0.00036438,15]
[367033133,1750623102724,-2330.89,0.00036438,15]
[367033134,1750623102734,-569.23,0.00036438,15]
[367033135,1750623102743,-490.0,0.00036438,15]
[367033136,1750623102754,-557.28,0.00036438,15]
[367033137,1750623102764,-490.0,0.00036438,15]
[367033138,1750623102774,-471.20498317,0.00036438,15]
[367033139,1750623102783,-490.0,0.00036438,15]
[367033140,1750623102794,-794.83,0.00036438,15]
[367033141,1750623102806,-843.87,0.00036438,15]
[367033142,1750623102816,-490.0,0.00036438,15]
[367033143,1750623102825,-490.0,0.00036438,15]
[367033144,1750623102835,-490.0,0.00036438,15]
[367033145,1750623102844,-490.0,0.00036438,15]
[367033146,1750623102856,-1918.9,0.00036438,15]
[367033147,1750623102866,-347.67141643,0.00036438,15]
[367033148,1750623102877,-490.0,0.00036438,15]
[367033149,1750623102886,-490.0,0.00036438,15]
[367033150,1750623102897,-242.85184927,0.00036438,15]
[367033151,1750623102907,-490.0,0.00036438,15]
[367033152,1750623102917,-490.0,0.00036438,15]
[367033153,1750623102927,-674.69,0.00036438,15]
[367033154,1750623102937,-1314.44,0.00036438,15]
[367033155,1750623102946,-490.0,0.00036438,7]
[367033156,1750623102955,-573.69,0.00036438,15]
[367033157,1750623102964,-490.0,0.00036438,15]
[367033158,1750623102973,-490.0,0.00036438,15]
[367033159,1750623102982,-553.61265973,0.00036438,15]
[367033160,1750623102991,-1646.99,0.00036438,15]
[367033161,1750623103001,-490.0,0.00036438,15]
[367033162,1750623103011,-200.0,0.00036438,15]
[367033163,1750623103020,-1706.53,0.00036438,15]
[367033164,1750623103031,-1896.7,0.00036438,15]
[367033165,1750623103040,-490.0,0.00036438,7]
[367033166,1750623103054,-1923.45,0.00036438,15]
[367033167,1750623103064,-1465.41,0.00036438,15]
[367033168,1750623103073,-779.86,0.00036438,15]
[367033169,1750623103083,-490.0,0.00036438,15]
[367033170,1750623103093,-882.36,0.00036438,15]
[367033171,1750623103102,-490.0,0.00036438,15]
[367033172,1750623103112,-519.3,0.00036438,15]
[367033173,1750623103121,-1655.6,0.00036438,15]
[367033174,1750623103131,-490.0,0.00036438,15]
[367033175,1750623103140,-490.0,0.00036438,15]
[367033176,1750623103149,-1063.35,0.00036438,15]
[367033177,1750623103159,-490.0,0.00036438,15]
[367033178,1750623103168,-490.0,0.00036438,15]
[367033179,1750623103177,-886.52,0.00036438,15]
[367033180,1750623103186,-490.0,0.00036438,15]
[367033181,1750623103195,-490.0,0.00036438,15]
[367033182,1750623103204,-490.0,0.00036438,15]
[367033183,1750623103213,-490.0,0.00036438,15]
[367033184,1750623103223,-1532.64,0.00036438,15]
[367033185,1750623103232,-1090.39,0.00036438,15]
[367033186,1750623103241,-490.0,0.00036438,15]
[367033187,1750623103250,-490.0,0.00036438,15]
[367033188,1750623103259,-1583.32,0.00036438,15]
[367033189,1750623103268,-490.0,0.00036438,15]
[367033190,1750623103277,-490.0,0.00036438,15]
[367033191,1750623103286,-2259.05,0.00036438,15]
[367033192,1750623103298,-490.0,0.00036438,15]
[367033193,1750623103307,-809.54,0.00036438,15]
[367033194,1750623103316,-954.98,0.00036438,15]
[367033195,1750623103325,-1108.87,0.00036438,15]
[367033196,1750623103335,-490.0,0.00036438,15]
[367033197,1750623103343,-589.22064706,0.00036438,15]
[367033198,1750623103352,-764.87,0.00036438,15]
[367033199,1750623103362,-498.45,0.00036438,15]
[367033200,1750623103371,-490.0,0.00036438,15]
[367033201,1750623103380,-1075.78,0.00036438,15]
[367033202,1750623103389,-1030.96,0.00036438,15]
[367033203,1750623103398,-490.0,0.00036438,15]
[367033204,1750623103407,-1705.66,0.00036438,15]
[367033205,1750623103416,-490.0,0.00036438,15]
[367033206,1750623103425,-769.06,0.00036438,15]
[367033207,1750623103434,-490.0,0.00036438,15]
[367033208,1750623103443,-490.0,0.00036438,15]
[367033209,1750623103452,-757.66,0.00036438,15]
[367033210,1750623103462,-958.05,0.00036438,15]
[367033211,1750623103471,-490.0,0.00036438,15]
[367033212,1750623103480,-490.0,0.00036438,15]
[367033213,1750623103490,-496.27700775,0.00036438,15]
[367033214,1750623103499,-972.54,0.00036438,15]
[367033215,1750623103508,-1045.31,0.00036438,15]
[367033216,1750623103518,-507.13,0.00036438,15]
[367033217,1750623103527,-1868.99,0.00036438,15]
[367033218,1750623103537,-490.0,0.00036438,15]
[367033219,1750623103550,-1703.66,0.00036438,15]
[367033220,1750623103559,-490.0,0.00036438,15]
[367033221,1750623103568,-490.0,0.00036438,15]
[367033222,1750623103578,-490.0,0.00036438,15]
[367033223,1750623103586,-490.0,0.00036438,15]
[367033224,1750623103596,-1399.22,0.00036438,15]
[367033225,1750623103605,-1301.13,0.00036438,15]
[367033226,1750623103615,-490.0,0.00036438,15]
[367033227,1750623103625,-654.76,0.00036438,15]
[367033228,1750623103635,-490.0,0.00036438,15]
[367033229,1750623103644,-490.0,0.00036438,15]
[367033230,1750623103653,-490.0,0.00036438,15]
[367033231,1750623103663,-490.0,0.00036438,15]
[367033232,1750623103672,-490.0,0.00036438,15]
[367033233,1750623103682,-490.0,0.00036438,15]
[367033234,1750623103691,-536.14,0.00036438,15]
[367033235,1750623103701,-2146.04,0.00036438,15]
[367033236,1750623103710,-1256.44,0.00036438,15]
[367033237,1750623103719,-490.0,0.00036438,15]
[367033238,1750623103728,-490.0,0.00036438,15]
[367033239,1750623103737,-1991.16,0.00036438,15]
[367033240,1750623103747,-1118.09,0.00036438,15]
[367033241,1750623103756,-490.0,0.00036438,15]
[367033242,1750623103766,-490.0,0.00036438,15]
[367033243,1750623103775,-1301.68,0.00036438,15]
[367033244,1750623103784,-490.0,0.00036438,15]
[367033245,1750623103795,-2093.47,0.00036438,15]
[367033246,1750623103807,-1552.82,0.00036438,15]
[367033247,1750623103817,-625.24,0.00036438,15]
[367033248,1750623103826,-1138.32,0.00036438,15]
[367033249,1750623103835,-490.0,0.00036438,15]
[367033250,1750623103844,-490.0,0.00036438,15]
[367033251,1750623103857,-1509.09,0.00036438,15]
[367033252,1750623103866,-1794.71,0.00036438,15]
[367033253,1750623103875,-656.93,0.00036438,15]
[367033254,1750623103885,-3146.84,0.00036438,15]
[367033255,1750623103895,-490.0,0.00036438,15]
[367033256,1750623103905,-490.0,0.00036438,15]
[367033257,1750623103914,-819.95,0.00036438,15]
[367033258,1750623103923,-1172.57,0.00036438,15]
[367033259,1750623103933,-1008.17,0.00036438,15]
[367033260,1750623103943,-1267.42,0.00036438,15]
[367033261,1750623103952,-2880.97,0.00036438,15]
[367033262,1750623103962,-490.0,0.00036438,15]
[367033263,1750623103971,-490.0,0.00036438,15]
[367033264,1750623103980,-490.0,0.00036438,15]
[367033265,1750623103991,-490.0,0.00036438,15]
[367033266,1750623104001,-1397.05,0.00036438,15]
[367033267,1750623104010,-490.0,0.00036438,15]
[367033268,1750623104019,-968.44,0.00036438,15]
[367033269,1750623104029,-490.0,0.00036438,15]
[367033270,1750623104038,-490.0,0.00036438,15]
[367033271,1750623104052,-1987.58,0.00036438,15]
[367033272,1750623104061,-490.0,0.00036438,15]
[367033273,1750623104071,-490.0,0.00036438,15]
[367033274,1750623104081,-643.07,0.00036438,15]
[367033275,1750623104092,-490.0,0.00036438,15]
[367033276,1750623104105,-490.0,0.00036438,15]
[367033277,1750623104124,-490.0,0.00036438,15]
[367033278,1750623104134,-490.0,0.00036438,15]
[367033279,1750623104144,-2472.69,0.00036438,15]
[367033280,1750623104154,-490.0,0.00036438,15]
[367033281,1750623104164,-234.16058417,0.00036438,15]
[367033282,1750623104173,-1581.01,0.00036438,15]
[367033283,1750623104183,-515.32995811,0.00036438,15]
[367033284,1750623104192,-389.91896682,0.00036438,15]
[367033285,1750623104202,-490.0,0.00036438,15]
[367033286,1750623104211,-490.0,0.00036438,15]
[367033287,1750623104222,-713.45,0.00036438,15]
[367033288,1750623104232,-1332.01,0.00036438,15]
[367033289,1750623104241,-490.0,0.00036438,15]
[367033290,1750623104250,-490.0,0.00036438,15]
[367033291,1750623104260,-1861.84,0.00036438,15]
[367033292,1750623104269,-490.0,0.00036438,15]
[367033293,1750623104279,-490.0,0.00036438,15]
[367033294,1750623104288,-490.0,0.00036438,15]
[367033295,1750623104303,-490.0,0.00036438,15]
[367033296,1750623104312,-490.0,0.00036438,15]
[367033297,1750623104321,-2023.73,0.00036438,15]
[367033298,1750623104331,-490.0,0.00036438,15]
[367033299,1750623104340,-1591.1,0.00036438,15]
[367033300,1750623104349,-232.50030727,0.00036438,15]
[367033301,1750623105789,-490.0,0.00036164,2]
[367033302,1750623105801,-257.49969273,0.00036438,15]
[367033303,1750623105811,-490.0,0.00036438,15]
[367033304,1750623105820,-490.0,0.00036438,15]
[367033305,1750623105830,-490.0,0.00036438,15]
[367033306,1750623105839,-45.00030703,0.00036438,15]
[367033307,1750623105955,-1709.04969297,0.00036438,15]
[367033308,1750623105965,-69.51640307,0.00036438,15]
[367033309,1750623106923,-490.0,0.00035616,15]
[367033310,1750623106933,-1348.09,0.00035616,15]
[367033311,1750623106943,-1348.09,0.0003589,15]
[367033312,1750623106953,-1348.09,0.00036164,15]
[367033313,1750623106963,-420.48359693,0.00036438,15]
[367033314,1750623106972,-490.0,0.00036438,15]
[367033315,1750623106981,-490.0,0.00036438,15]
[367033316,1750623106991,-3961.99,0.00036438,15]
[367033317,1750623107000,-490.0,0.00036438,15]
[367033318,1750623107009,-490.0,0.00036438,15]
[367033319,1750623107019,-490.0,0.00036438,15]
[367033320,1750623107028,-490.0,0.00036438,15]
[367033321,1750623107038,-490.0,0.00036438,15]
[367033322,1750623107050,-824.41,0.00036438,15]
[367033323,1750623107060,-1314.71,0.00036438,15]
[367033324,1750623107069,-490.0,0.00036438,15]
[367033325,1750623107078,-311.46829623,0.00036438,15]
[367033326,1750623107088,-490.0,0.00036438,15]
[367033327,1750623107098,-490.0,0.00036438,15]
[367033328,1750623107107,-1977.55,0.00036438,15]
[367033329,1750623107117,-490.0,0.00036438,15]
[367033330,1750623107127,-490.0,0.00036438,15]
[367033331,1750623107136,-490.0,0.00036438,15]
[367033332,1750623107146,-490.0,0.00036438,15]
[367033333,1750623107155,-490.0,0.00036438,15]
[367033334,1750623107164,-490.0,0.00036438,15]
[367033335,1750623107174,-2209.61,0.00036438,15]
[367033336,1750623107183,-490.0,0.00036438,15]
[367033337,1750623107193,-490.0,0.00036438,15]
[367033338,1750623107203,-490.0,0.00036438,15]
[367033339,1750623107213,-1229.85,0.00036438,15]
[367033340,1750623107223,-490.0,0.00036438,15]
[367033341,1750623107235,-861.9,0.00036438,15]
[367033342,1750623107245,-490.0,0.00036438,15]
[367033343,1750623107257,-490.0,0.00036438,15]
[367033344,1750623107266,-1217.63,0.00036438,15]
[367033345,1750623107276,-832.77,0.00036438,15]
[367033346,1750623107287,-490.0,0.00036438,15]
[367033347,1750623107300,-2349.97,0.00036438,15]
[367033348,1750623107309,-490.0,0.00036438,15]
[367033349,1750623107319,-462.9739537,0.00036438,15]
[367033350,1750623107328,-679.89,0.00036438,15]
[367033351,1750623107337,-490.0,0.00036438,15]
[367033352,1750623107346,-363.0772724,0.00036438,15]
[367033353,1750623107355,-1003.86,0.00036438,15]
[367033354,1750623107364,-1059.75,0.00036438,15]
[367033355,1750623107375,-490.0,0.00036438,15]
[367033356,1750623107384,-490.0,0.00036438,15]
[367033357,1750623107393,-3235.37,0.00036438,2]
[367033358,1750623107402,-490.0,0.00036438,15]
[367033359,1750623107411,-490.0,0.00036438,15]
[367033360,1750623107421,-658.99,0.00036438,15]
[367033361,1750623107430,-490.0,0.00036438,15]
[367033362,1750623107439,-1934.4,0.00036438,15]
[367033363,1750623107448,-1684.67,0.00036438,15]
[367033364,1750623107457,-490.0,0.00036438,15]
[367033365,1750623107466,-498.92354627,0.00036438,15]
[367033366,1750623107475,-490.0,0.00036438,15]
[367033367,1750623107484,-490.0,0.00036438,15]
[367033368,1750623107493,-490.0,0.00036438,15]
[367033369,1750623107502,-490.0,0.00036438,15]
[367033370,1750623107510,-1339.11,0.00036438,15]
[367033371,1750623107519,-620.32,0.00036438,15]
[367033372,1750623107529,-576.99,0.00036438,15]
[367033373,1750623107538,-2587.68,0.00036438,15]
[367033374,1750623107549,-691.75,0.00036438,15]
[367033375,1750623107559,-490.0,0.00036438,15]
[367033376,1750623107568,-490.0,0.00036438,14]
[367033377,1750623107577,-727.36,0.00036438,15]
[367033378,1750623107586,-499.9542109,0.00036438,15]
[367033379,1750623107595,-242.03924445,0.00036438,15]
[367033380,1750623107604,-490.0,0.00036438,15]
[367033381,1750623107614,-490.0,0.00036438,15]
[367033382,1750623107623,-490.0,0.00036438,15]
[367033383,1750623107632,-490.0,0.00036438,15]
[367033384,1750623107641,-778.0,0.00036438,15]
[367033385,1750623107650,-2834.14,0.00036438,15]
[367033386,1750623107659,-1144.72,0.00036438,15]
[367033387,1750623107669,-768.07,0.00036438,15]
[367033388,1750623107678,-490.0,0.00036438,15]
[367033389,1750623107687,-1027.25,0.00036438,15]
[367033390,1750623107696,-490.0,0.00036438,15]
[367033391,1750623107704,-640.48,0.00036438,15]
[367033392,1750623107713,-181.51689646,0.00036438,15]
[367033393,1750623107723,-348.21221499,0.00036438,15]
[367033394,1750623107732,-490.0,0.00036438,15]
[367033395,1750623107741,-490.0,0.00036438,15]
[367033396,1750623107750,-285.09011504,0.00036438,15]
[367033397,1750623107760,-490.0,0.00036438,15]
[367033398,1750623107769,-490.0,0.00036438,15]
[367033399,1750623107778,-490.0,0.00036438,15]
[367033400,1750623107787,-490.0,0.00036438,15]
[367033401,1750623107798,-1879.25,0.00036438,15]
[367033402,1750623107807,-490.0,0.00036438,15]
[367033403,1750623107817,-742.62,0.00036438,15]
[367033404,1750623107826,-490.0,0.00036438,15]
[367033405,1750623107835,-490.0,0.00036438,15]
[367033406,1750623108035,-490.0,0.00036438,15]
[367033407,1750623108086,-490.0,0.00036438,15]
[367033408,1750623108096,-1075.23,0.00036438,15]
[367033409,1750623108105,-828.03,0.00036438,15]
[367033410,1750623108115,-490.0,0.00036438,15]
[367033411,1750623108124,-490.0,0.00036438,15]
[367033412,1750623108134,-490.0,0.00036438,15]
[367033413,1750623108143,-490.0,0.00036438,15]
[367033414,1750623108152,-1088.71,0.00036438,15]
[367033415,1750623108161,-490.0,0.00036438,15]
[367033416,1750623108171,-3143.04,0.00036438,15]
[367033417,1750623108180,-490.0,0.00036438,15]
[367033418,1750623108190,-490.0,0.00036438,15]
[367033419,1750623108200,-218.55137724,0.00036438,15]
[367033420,1750623108209,-742.73,0.00036438,15]
[367033421,1750623108218,-490.0,0.00036438,15]
[367033422,1750623108228,-517.63,0.00036438,15]
[367033423,1750623108237,-490.0,0.00036438,15]
[367033424,1750623108246,-2355.34,0.00036438,15]
[367033425,1750623108255,-2097.11,0.00036438,15]
[367033426,1750623108264,-490.0,0.00036438,15]
[367033427,1750623108273,-490.0,0.00036438,15]
[367033428,1750623108282,-649.0,0.00036438,15]
[367033429,1750623108292,-2199.48,0.00036438,15]
[367033430,1750623108302,-490.0,0.00036438,15]
[367033431,1750623108311,-490.0,0.00036438,15]
[367033432,1750623108321,-1415.25,0.00036438,15]
[367033433,1750623108331,-603.99,0.00036438,15]
[367033434,1750623108340,-490.0,0.00036438,15]
[367033435,1750623108349,-1050.32,0.00036438,15]
[367033436,1750623108359,-490.0,0.00036438,15]
[367033437,1750623108369,-2112.09,0.00036438,15]
[367033438,1750623108378,-1166.28,0.00036438,15]
[367033439,1750623108388,-490.0,0.00036438,15]
[367033440,1750623108398,-881.74,0.00036438,15]
[367033441,1750623108407,-490.0,0.00036438,15]
[367033442,1750623108416,-848.78,0.00036438,15]
[367033443,1750623108425,-2630.02,0.00036438,15]
[367033444,1750623108435,-855.43,0.00036438,15]
[367033445,1750623108444,-2967.31,0.00036438,15]
[367033446,1750623108454,-490.0,0.00036438,15]
[367033447,1750623108463,-2172.4,0.00036438,15]
[367033448,1750623108473,-684.08,0.00036438,7]
[367033449,1750623108482,-490.0,0.00036438,15]
[367033450,1750623108492,-575.21,0.00036438,15]